bitfinex/quotes_SOLUSD_20250209
["timestamp","ask_amount","ask_price","bid_price","bid_amount"]
[1739138351091,1.7024,195.71,195.62,20.0]
[1739138351304,0.156,195.7,195.62,21.0]
[1739138351619,0.156,195.69,195.62,21.0]
[1739138352026,0.156,195.69,195.68,41.2169652]
[1739138352520,0.156,195.7,195.68,41.2169652]
[1739138352822,0.156,195.7,195.69,41.2169652]
[1739138353192,0.156,195.71,195.69,41.2169652]
[1739138353519,0.156,195.7,195.69,41.2169652]
[1739138353745,0.156,195.71,195.69,46.3269652]
[1739138353889,0.156,195.72,195.7,41.2169652]
[1739138354089,0.156,195.76,195.71,41.2169652]
[1739138354315,1.6159,195.79,195.75,41.2169652]
[1739138354316,1.7719,195.79,195.75,41.2169652]
[1739138354626,0.186,195.79,195.78,41.2169652]
[1739138355121,0.03,195.79,195.78,41.2169652]
[1739138355897,0.186,195.79,195.78,41.2169652]
[1739138356099,0.03,195.79,195.78,82.4339304]
[1739138357813,0.03,195.79,195.78,41.2169652]
[1739138358318,0.03,195.79,195.78,82.4339304]
[1739138358817,0.03,195.8,195.79,5.1075]
[1739138359118,0.03,195.8,195.79,87.5414304]
[1739138359631,0.15,195.86,195.82,20.0]
[1739138359802,0.15,195.86,195.85,41.2169652]
[1739138360009,1.7419,195.94,195.88,20.0]
[1739138360209,0.156,195.94,195.88,20.0]
[1739138360418,0.156,195.96,195.88,102.4339304]
[1739138360625,0.156,195.96,195.95,41.2169652]
[1739138361111,0.03,195.99,195.95,46.3201652]
[1739138361417,0.186,195.99,195.98,41.2169652]
[1739138361821,0.03,195.99,195.98,41.2169652]
[1739138362028,0.186,195.99,195.98,41.2169652]
[1739138363034,0.186,195.99,195.9,41.2169652]
[1739138363035,0.156,195.98,195.97,41.2169652]
[1739138363333,0.156,195.95,195.94,41.2169652]
[1739138364219,0.156,195.96,195.94,41.2169652]
[1739138364418,0.156,195.93,195.9,41.2169652]
[1739138364639,0.156,195.91,195.9,41.2169652]
[1739138365235,0.156,195.85,195.76,0.844]
[1739138365435,0.156,195.84,195.78,5.1075]
[1739138365948,0.156,195.84,195.75,1.844]
[1739138366255,0.156,195.81,195.71,7.6879]
[1739138366446,0.156,195.81,195.72,5.1093]
[1739138366617,0.156,195.79,195.72,5.1093]
[1739138366818,0.156,195.81,195.72,5.1093]
[1739138367034,0.156,195.83,195.75,5.1085]
[1739138367245,0.156,195.83,195.78,20.0]
[1739138367419,0.156,195.82,195.8,41.2169652]
[1739138367732,0.156,195.82,195.81,41.2169652]
[1739138368616,13.41184853,195.86,195.7,41.2169652]
[1739138368617,0.156,195.81,195.8,41.2169652]
[1739138368822,0.156,195.81,195.79,41.2169652]
[1739138369144,0.156,195.79,195.78,41.2169652]
[1739138373129,0.156,195.79,195.77,41.2169652]
[1739138374039,0.156,195.75,195.72,5.1093]
[1739138374242,0.156,195.75,195.74,41.2169652]
[1739138374442,6.02,195.9,195.74,41.2169652]
[1739138374443,0.156,195.78,195.74,41.2169652]
[1739138374648,0.156,195.76,195.72,5.1093]
[1739138375424,0.156,195.77,195.74,20.0]
[1739138375644,0.156,195.77,195.76,41.2169652]
[1739138378243,0.156,195.74,195.73,41.2169652]
[1739138378456,0.156,195.72,195.71,41.2169652]
[1739138378655,0.156,195.68,195.62,5.1117]
[1739138378828,0.156,195.63,195.61,0.063]
[1739138379233,0.156,195.62,195.61,0.063]
[1739138379438,0.156,195.64,195.61,0.063]
[1739138379758,0.156,195.64,195.63,41.2169652]
[1739138380548,0.156,195.63,195.62,41.2169652]
[1739138381230,13.41184853,195.67,195.61,0.063]
[1739138381231,0.156,195.62,195.61,41.2799652]
[1739138381632,0.156,195.62,195.61,0.063]
[1739138383354,0.156,195.62,195.61,41.2799652]
[1739138383839,0.156,195.62,195.61,0.063]
[1739138385155,0.156,195.64,195.61,41.2799652]
[1739138385459,0.156,195.64,195.63,41.2169652]
[1739138385839,0.156,195.63,195.62,41.2169652]
[1739138386040,0.156,195.62,195.61,0.063]
[1739138388429,0.156,195.62,195.61,41.2799652]
[1739138388671,1.624,195.65,195.61,41.2799652]
[1739138388672,1.78,195.65,195.61,41.2799652]
[1739138388849,1.78,195.65,195.64,41.2169652]
[1739138389233,0.156,195.66,195.64,41.2169652]
[1739138389562,0.156,195.66,195.65,41.2169652]
[1739138389762,0.156,195.66,195.65,46.3280652]
[1739138390652,0.156,195.66,195.65,41.2169652]
[1739138390852,0.156,195.66,195.63,41.2169652]
[1739138391038,0.156,195.64,195.61,41.2799652]
[1739138391248,0.156,195.62,195.61,41.1299652]
[1739138391550,0.156,195.6,195.59,41.2169652]
[1739138391936,0.156,195.59,195.58,41.2169652]
[1739138392435,0.156,195.59,195.57,41.2169652]
[1739138392641,0.156,195.59,195.56,41.2169652]
[1739138392867,0.156,195.57,195.55,41.2799652]
[1739138393361,0.156,195.56,195.55,41.2799652]
[1739138393790,0.156,195.56,195.55,0.063]
[1739138394952,6.176,195.56,195.55,0.063]
[1739138395230,6.176,195.56,195.55,41.2799652]
[1739138395861,6.176,195.56,195.55,0.063]
[1739138395862,19.58784853,195.56,195.55,0.063]
[1739138398660,60.80481373,195.56,195.55,0.063]
[1739138398858,61.3729652,195.54,195.53,0.063]
[1739138399047,74.78481373,195.54,195.53,0.063]
[1739138399250,75.78481373,195.54,195.53,0.063]
[1739138399466,76.78481373,195.54,195.53,0.063]
[1739138399970,75.78481373,195.54,195.53,0.063]
[1739138400349,15.56784853,195.53,195.52,0.063]
[1739138400581,56.78481373,195.53,195.52,0.063]
[1739138400970,13.56784853,195.53,195.52,0.063]
[1739138401177,43.3729652,195.53,195.52,0.063]
[1739138401351,56.78481373,195.53,195.52,0.063]
[1739138401980,55.78481373,195.53,195.52,0.063]
[1739138402351,55.78481373,195.53,195.42,41.2169652]
[1739138402352,20.0,195.49,195.42,41.2169652]
[1739138402547,20.0,195.46,195.42,41.2169652]
[1739138402779,20.0,195.46,195.41,0.063]
[1739138402780,0.156,195.42,195.41,0.063]
[1739138403160,0.156,195.42,195.35,0.063]
[1739138403161,0.156,195.36,195.35,0.063]
[1739138403369,26.176,195.36,195.35,0.063]
[1739138403680,6.176,195.36,195.35,0.063]
[1739138403875,6.176,195.36,195.35,41.2799652]
[1739138404061,6.176,195.36,195.35,0.063]
[1739138404385,0.156,195.23,195.21,6.6431]
[1739138404561,0.156,195.2,195.11,6.7179]
[1739138404767,0.156,195.2,195.13,0.844]
[1739138404979,0.156,195.19,195.11,12.5918]
[1739138405267,0.156,195.19,195.12,5.1249]
[1739138405471,0.156,195.19,195.15,20.0]
[1739138405673,0.156,195.19,195.18,41.2799652]
[1739138405861,0.156,195.19,195.18,0.063]
[1739138406065,54.78481373,195.19,195.18,0.063]
[1739138406660,0.156,195.19,195.18,0.063]
[1739138406867,0.156,195.2,195.18,0.063]
[1739138407070,0.156,195.19,195.18,0.063]
[1739138407466,0.156,195.23,195.18,5.1864]
[1739138407693,0.156,195.21,195.18,0.063]
[1739138407984,0.156,195.19,195.18,0.063]
[1739138408152,0.156,195.21,195.18,0.063]
[1739138408356,0.156,195.19,195.18,0.063]
[1739138410176,88.35441373,195.19,195.18,0.063]
[1739138410381,0.156,195.12,195.11,0.03]
[1739138411373,0.156,195.12,195.11,41.2469652]
[1739138412786,0.156,195.12,195.11,0.03]
[1739138413189,41.3729652,195.12,195.11,0.03]
[1739138413391,47.3929652,195.12,195.11,0.03]
[1739138413694,6.176,195.12,195.11,0.03]
[1739138413863,19.58784853,195.12,195.11,0.03]
[1739138414068,60.80481373,195.12,195.11,0.03]
[1739138414277,0.156,195.04,195.02,41.2169652]
[1739138414590,0.156,195.04,194.99,5.1584]
[1739138414892,0.156,195.08,195.03,41.2169652]
[1739138415104,0.156,195.11,195.03,13.41184853]
[1739138415263,0.156,195.06,195.03,20.0]
[1739138415462,12.023,195.15,195.0,41.2169652]
[1739138415463,0.156,195.05,195.0,41.2169652]
[1739138415880,0.156,195.04,195.0,41.2169652]
[1739138416088,0.156,195.04,195.03,41.2169652]
[1739138416327,0.156,195.06,195.03,41.2169652]
[1739138416587,0.156,195.06,195.05,41.2169652]
[1739138417188,0.156,195.09,195.05,41.2169652]
[1739138417379,0.156,195.08,195.04,20.0]
[1739138417688,0.156,195.11,195.07,41.2169652]
[1739138417987,0.156,195.11,195.05,5.1268]
[1739138418191,0.156,195.12,195.1,41.2169652]
[1739138418378,0.156,195.12,195.11,41.2169652]
[1739138418780,0.156,195.07,195.06,41.2169652]
[1739138419285,31.0,195.13,195.0,5.1281]
[1739138419286,0.156,195.02,195.0,5.1281]
[1739138419596,5.1208,195.28,195.0,5.1281]
[1739138419597,0.156,195.08,195.01,13.41184853]
[1739138419797,0.156,195.06,195.04,20.0]
[1739138419977,0.156,195.09,195.05,46.3435652]
[1739138420187,0.156,195.09,195.08,41.2169652]
[1739138420385,0.156,195.12,195.08,41.2169652]
[1739138420590,0.156,195.12,195.11,41.2169652]
[1739138422281,0.156,195.14,195.11,41.2169652]
[1739138422510,0.156,195.12,195.11,41.2169652]
[1739138422722,0.156,195.12,195.04,20.0]
[1739138422723,0.156,195.12,195.1,41.2169652]
[1739138422879,0.156,195.07,195.06,41.2169652]
[1739138423602,0.156,195.05,195.04,41.2169652]
[1739138424273,0.156,195.02,195.0,41.2169652]
[1739138424494,6.0667,195.08,194.99,0.03]
[1739138424495,0.156,195.0,194.99,0.03]
[1739138425872,0.156,195.0,194.99,41.2469652]
[1739138426077,0.156,195.0,194.99,0.03]
[1739138426274,0.156,195.0,194.99,41.2469652]
[1739138427408,0.156,195.0,194.99,0.03]
[1739138427613,41.3729652,195.0,194.99,0.03]
[1739138428173,42.3729652,195.0,194.99,0.03]
[1739138428374,73.3729652,195.0,194.98,0.03]
[1739138428607,42.3729652,194.99,194.98,0.03]
[1739138428783,0.156,194.88,194.87,41.2169652]
[1739138428991,0.156,194.87,194.86,41.2169652]
[1739138429692,0.156,194.94,194.89,33.41184853]
[1739138429884,0.156,194.94,194.93,41.2169652]
[1739138430088,0.156,194.88,194.85,20.0]
[1739138430307,0.156,194.9,194.81,5.1332]
[1739138430608,0.156,194.9,194.85,13.41184853]
[1739138430906,6.2661,194.99,194.85,13.41184853]
[1739138430907,0.156,194.92,194.85,13.41184853]
[1739138431076,0.156,194.88,194.85,13.41184853]
[1739138431281,0.156,194.85,194.8,41.2169652]
[1739138431519,0.156,194.84,194.8,46.3502652]
[1739138431809,0.156,194.84,194.81,13.41184853]
[1739138432114,0.156,194.85,194.81,13.41184853]
[1739138432295,0.156,194.85,194.84,20.0]
[1739138432495,0.156,194.85,194.84,41.2169652]
[1739138433309,0.156,194.92,194.87,20.0]
[1739138433622,0.156,194.93,194.91,41.2169652]
[1739138433785,0.156,194.95,194.9,41.2169652]
[1739138433980,0.156,194.97,194.91,13.41184853]
[1739138434210,6.2661,194.99,194.91,13.41184853]
[1739138434211,0.156,194.96,194.91,13.41184853]
[1739138434510,0.156,194.96,194.95,41.2169652]
[1739138435783,0.156,194.96,194.87,25.1314]
[1739138435784,0.156,194.94,194.93,41.2169652]
[1739138438117,0.156,194.94,194.93,54.62881373]
[1739138438387,0.156,194.99,194.94,13.41184853]
[1739138438581,0.156,194.99,194.98,41.2169652]
[1739138438780,0.156,194.91,194.9,41.2169652]
[1739138439095,0.156,194.92,194.86,13.41184853]
[1739138439406,0.156,194.98,194.94,13.41184853]
[1739138439786,0.156,194.94,194.92,13.41184853]
[1739138439986,0.156,194.94,194.93,41.2169652]
[1739138440401,0.156,194.94,194.93,54.62881373]
[1739138440608,6.02,195.03,194.93,54.62881373]
[1739138440609,0.156,195.0,194.95,13.41184853]
[1739138440823,0.156,194.97,194.96,20.0]
[1739138440986,0.156,194.97,194.96,41.2169652]
[1739138441335,0.156,194.97,194.95,41.2169652]
[1739138441612,0.156,194.96,194.95,41.2169652]
[1739138442193,0.156,194.93,194.92,41.2169652]
[1739138442814,0.156,194.92,194.9,41.2169652]
[1739138443434,0.156,194.9,194.89,41.2169652]
[1739138443626,73.2169652,194.96,194.8,46.3501652]
[1739138443627,0.156,194.89,194.88,41.2169652]
[1739138444423,1.6127,194.92,194.87,41.2169652]
[1739138444424,0.156,194.88,194.87,41.2169652]
[1739138447136,0.156,194.88,194.86,41.2169652]
[1739138447321,0.156,194.85,194.84,41.2169652]
[1739138447502,0.156,194.85,194.83,41.2169652]
[1739138447707,0.156,194.84,194.83,41.2169652]
[1739138448005,0.156,194.83,194.82,41.2169652]
[1739138448334,0.156,194.79,194.78,41.2169652]
[1739138448536,0.156,194.78,194.76,41.2169652]
[1739138448731,0.156,194.77,194.75,41.2169652]
[1739138448917,0.156,194.75,194.74,41.2169652]
[1739138449317,0.156,194.72,194.7,41.2169652]
[1739138449647,0.156,194.68,194.67,41.2169652]
[1739138450233,0.156,194.64,194.63,41.2469652]
[1739138450553,0.156,194.64,194.63,0.03]
[1739138450844,8.7937,194.64,194.63,0.03]
[1739138451050,20.156,194.62,194.61,0.03]
[1739138451344,62.3729652,194.62,194.61,0.03]
[1739138451637,1.156,194.61,194.6,0.063]
[1739138451835,1.0,194.57,194.52,41.2169652]
[1739138452040,0.156,194.52,194.51,41.2169652]
[1739138452210,0.156,194.51,194.5,0.2]
[1739138453134,0.156,194.51,194.5,41.4169652]
[1739138453510,0.156,194.51,194.5,82.6339304]
[1739138453717,0.156,194.55,194.53,20.0]
[1739138453931,0.156,194.55,194.54,41.2169652]
[1739138454138,0.156,194.59,194.54,41.2169652]
[1739138454435,0.156,194.58,194.5,41.4169652]
[1739138454650,6.14,194.6,194.5,41.4169652]
[1739138454651,0.156,194.54,194.5,0.2]
[1739138454948,0.156,194.51,194.5,0.2]
[1739138455324,0.156,194.51,194.43,0.03]
[1739138455325,0.156,194.44,194.43,0.03]
[1739138455519,0.156,194.44,194.43,41.2469652]
[1739138455837,6.916,194.44,194.43,0.03]
[1739138456413,6.916,194.44,194.43,41.2469652]
[1739138456620,6.76,194.44,194.43,41.2469652]
[1739138456823,6.916,194.44,194.43,41.2469652]
[1739138457345,6.76,194.44,194.43,41.2469652]
[1739138457515,0.156,194.45,194.43,41.2469652]
[1739138457723,0.156,194.49,194.45,13.41184853]
[1739138457921,0.156,194.52,194.49,13.41184853]
[1739138458249,1.0,194.53,194.5,41.2169652]
[1739138458419,1.0,194.52,194.5,41.2169652]
[1739138458615,1.0,194.44,194.4,36.85057866]
[1739138458944,1.0,194.43,194.42,20.0]
[1739138459136,2.0,194.47,194.42,20.0]
[1739138459332,1.0,194.48,194.43,20.0]
[1739138459641,1.0,194.54,194.5,20.0]
[1739138459832,1.0,194.58,194.53,41.2169652]
[1739138460030,0.8815,194.6,194.57,41.2169652]
[1739138460350,7.14,194.64,194.59,82.4339304]
[1739138460525,0.8815,194.6,194.58,20.25098]
[1739138460715,7.14,194.64,194.55,0.1185]
[1739138461047,0.8815,194.68,194.63,41.2169652]
[1739138461248,0.8815,194.68,194.67,41.2169652]
[1739138461547,0.8815,194.64,194.63,41.2169652]
[1739138461749,0.8815,194.58,194.5,46.3581652]
[1739138461930,0.8815,194.6,194.53,20.0]
[1739138462238,0.8815,194.55,194.53,20.0]
[1739138462441,0.8815,194.6,194.53,20.0]
[1739138462643,0.6368,194.64,194.57,20.0]
[1739138462948,0.6368,194.69,194.63,41.2169652]
[1739138463122,0.6368,194.77,194.68,82.4339304]
[1739138463451,0.6368,194.79,194.76,41.2169652]
[1739138463647,7.12,194.82,194.7,41.2169652]
[1739138463648,0.6368,194.81,194.74,20.0]
[1739138463856,7.12,194.82,194.74,20.3632]
[1739138464048,7.12,194.82,194.81,41.2169652]
[1739138464343,1.0643,194.88,194.81,41.2169652]
[1739138464639,7.14,194.92,194.85,41.2169652]
[1739138464840,7.14,194.92,194.8,41.2169652]
[1739138464841,41.2169652,194.95,194.87,41.2169652]
[1739138465046,6.2305,194.96,194.81,5.1332]
[1739138465219,43.3705,194.96,194.9,41.2169652]
[1739138465427,13.3705,194.96,194.9,41.2169652]
[1739138465626,7.12,194.95,194.91,41.2169652]
[1739138466149,0.03,194.98,194.93,41.2169652]
[1739138466359,0.03,194.98,194.97,41.2169652]
[1739138466528,0.03,194.98,194.96,41.2169652]
[1739138466851,0.03,194.98,194.97,41.2169652]
[1739138467354,0.03,194.98,194.96,41.2169652]
[1739138467964,0.03,194.98,194.97,41.2169652]
[1739138468522,0.03,194.98,194.97,82.6849104]
[1739138468721,0.03,194.98,194.97,96.09675893]
[1739138468928,0.03,195.11,194.97,96.09675893]
[1739138469135,0.03,195.11,195.1,41.2169652]
[1739138470060,0.03,195.11,195.1,82.4339304]
[1739138470232,0.03,195.18,195.13,20.0]
[1739138470743,0.03,195.18,195.17,41.2169652]
[1739138470943,0.03,195.18,195.1,41.2169652]
[1739138471144,0.03,195.18,195.17,41.2169652]
[1739138471357,0.03,195.18,195.16,41.2169652]
[1739138471647,0.03,195.18,195.02,1.0]
[1739138471845,0.03,195.18,195.01,7.1277]
[1739138472041,0.03,195.18,195.04,13.41184853]
[1739138472362,0.03,195.18,195.08,0.25098]
[1739138472537,0.03,195.18,195.11,20.0]
[1739138472757,0.03,195.18,195.17,82.4339304]
[1739138473064,7.12,195.3,195.2,20.0]
[1739138473237,7.12,195.3,195.28,41.2169652]
[1739138473657,13.41184853,195.29,195.1,47.3424652]
[1739138473834,13.41184853,195.29,195.24,41.2169652]
[1739138474035,13.41184853,195.29,195.25,41.2169652]
[1739138474464,7.12,195.3,195.25,41.2169652]
[1739138474641,6.2305,195.32,195.29,41.2169652]
[1739138474843,81.0,195.39,195.31,41.2169652]
[1739138475060,8.7148,195.36,195.34,41.2169652]
[1739138475361,7.14,195.44,195.35,41.2169652]
[1739138475664,6.0243,195.48,195.42,41.2169652]
[1739138475844,6.0243,195.48,195.31,0.12549]
[1739138475845,6.0243,195.48,195.46,41.2169652]
[1739138476044,13.41184853,195.47,195.33,20.0]
[1739138476240,30.0,195.43,195.3,41.2169652]
[1739138476438,30.95971192,195.46,195.24,2.0]
[1739138476663,30.0,195.46,195.32,20.0]
[1739138476853,13.41184853,195.41,195.18,2.0]
[1739138477049,13.41184853,195.39,195.18,1.0]
[1739138477366,13.41184853,195.37,195.31,41.2169652]
[1739138477572,30.0,195.46,195.36,41.2169652]
[1739138477791,6.0243,195.48,195.43,41.2169652]
[1739138478070,31.0,195.45,195.33,20.0]
[1739138478251,13.41184853,195.42,195.33,20.0]
[1739138478574,0.12549,195.44,195.33,20.0]
[1739138478741,6.0243,195.48,195.33,20.0]
[1739138478944,78.20069919,195.48,195.41,41.2169652]
[1739138479140,78.20069919,195.48,195.4,41.2169652]
[1739138479141,13.41184853,195.47,195.4,41.2169652]
[1739138479457,1.5174,195.49,195.46,41.2169652]
[1739138479662,7.26,195.5,195.43,20.0]
[1739138479844,0.03,195.53,195.43,12.3735]
[1739138480354,0.03,195.53,195.52,41.2169652]
[1739138480554,13.8716,195.65,195.52,41.2169652]
[1739138480758,13.8716,195.65,195.62,41.2169652]
[1739138480961,13.8716,195.65,195.6,41.2169652]
[1739138481156,13.8716,195.65,195.59,41.2169652]
[1739138481371,41.2169652,195.64,195.57,41.2169652]
[1739138481572,72.1756293,195.64,195.56,41.2169652]
[1739138481742,14.83036734,195.65,195.58,41.2169652]
[1739138482073,14.1116,195.65,195.64,41.2169652]
[1739138482278,14.1116,195.65,195.53,20.0]
[1739138482447,14.1116,195.65,195.62,41.2169652]
[1739138482654,13.53733853,195.64,195.6,41.2169652]
[1739138483147,13.53733853,195.62,195.59,41.2169652]
[1739138483386,14.1116,195.65,195.53,20.0]
[1739138483567,14.1116,195.65,195.53,16.9914]
[1739138483901,13.53733853,195.64,195.61,41.2169652]
[1739138484079,13.53733853,195.64,195.6,41.2169652]
[1739138484263,13.53733853,195.64,195.61,41.2169652]
[1739138484467,1.6515,195.69,195.63,41.2169652]
[1739138484677,1.6515,195.69,195.67,41.2169652]
[1739138484879,1.6515,195.69,195.68,41.2169652]
[1739138485285,7.64,195.7,195.68,41.2169652]
[1739138485580,7.64,195.7,195.69,41.2169652]
[1739138486171,0.03,195.73,195.69,82.4339304]
[1739138486348,0.03,195.73,195.72,41.2169652]
[1739138486766,0.03,195.73,195.7,41.2169652]
[1739138486959,0.03,195.73,195.71,41.2169652]
[1739138487147,0.12549,195.72,195.67,41.2169652]
[1739138487352,0.12549,195.72,195.69,41.2169652]
[1739138487550,13.53733853,195.72,195.68,41.2169652]
[1739138487756,0.12549,195.71,195.67,41.2169652]
[1739138487979,0.12549,195.71,195.6,41.2169652]
[1739138487980,0.12549,195.69,195.65,41.2169652]
[1739138488164,20.0,195.71,195.67,41.2169652]
[1739138488473,0.03,195.73,195.7,41.2169652]
[1739138488679,0.03,195.73,195.72,41.2169652]
[1739138489782,0.03,195.73,195.69,41.2169652]
[1739138489975,0.03,195.73,195.67,41.2169652]
[1739138490278,0.03,195.73,195.72,41.2169652]
[1739138491774,0.03,195.73,195.69,41.2169652]
[1739138491968,13.44184853,195.73,195.67,41.2169652]
[1739138492274,20.0,195.7,195.6,41.2169652]
[1739138492681,13.41184853,195.69,195.5,41.2169652]
[1739138492866,13.41184853,195.65,195.5,41.2169652]
[1739138493054,7.56,195.64,195.5,41.2169652]
[1739138493254,7.56,195.64,195.5,46.3318652]
[1739138493554,13.53733853,195.63,195.59,41.2169652]
[1739138493763,20.0,195.6,195.56,41.2169652]
[1739138494053,20.0,195.6,195.5,41.2169652]
[1739138494054,7.56,195.64,195.58,41.2169652]
[1739138494254,7.56,195.64,195.54,20.0]
[1739138494462,1.6031,195.7,195.54,20.0]
[1739138494675,1.72859,195.7,195.54,20.0]
[1739138494979,15.14043853,195.7,195.54,20.0]
[1739138495279,7.56,195.69,195.57,20.0]
[1739138495466,7.56,195.69,195.68,41.2169652]
[1739138495673,7.56,195.69,195.67,41.2169652]
[1739138495879,7.56,195.69,195.68,41.2169652]
[1739138496561,20.0,195.66,195.62,41.2169652]
[1739138496761,20.0,195.66,195.61,41.2169652]
[1739138496971,13.53733853,195.65,195.61,41.2169652]
[1739138497291,20.0,195.62,195.57,41.2169652]
[1739138497455,20.0,195.62,195.5,41.2169652]
[1739138497656,13.66282853,195.61,195.58,41.2169652]
[1739138497862,13.66282853,195.57,195.53,41.2169652]
[1739138498066,13.53733853,195.57,195.53,41.2169652]
[1739138498585,13.53733853,195.53,195.49,41.2169652]
[1739138498790,13.53733853,195.51,195.48,41.2169652]
[1739138498960,20.0,195.48,195.44,41.2169652]
[1739138499157,20.0,195.48,195.43,41.2169652]
[1739138499477,0.12549,195.5,195.44,41.2169652]
[1739138499680,13.53733853,195.45,195.33,20.569594]
[1739138499853,72.30197882,195.49,195.41,41.2169652]
[1739138500186,30.0,195.55,195.36,20.0]
[1739138500497,81.0,195.59,195.44,20.0]
[1739138500794,13.41184853,195.6,195.4,22.0]
[1739138500970,6.29819,195.61,195.47,0.12549]
[1739138501285,6.1727,195.61,195.48,82.4339304]
[1739138501470,13.41184853,195.63,195.6,41.2169652]
[1739138501662,7.66,195.64,195.62,41.2169652]
[1739138502672,7.66,195.64,195.6,41.2169652]
[1739138502879,7.66,195.64,195.51,0.12549]
[1739138502880,7.66,195.64,195.62,41.2169652]
[1739138503782,7.66,195.64,195.58,41.2169652]
[1739138504086,20.0,195.6,195.55,41.2169652]
[1739138504865,20.0,195.61,195.57,41.2169652]
[1739138505070,20.0,195.61,195.59,41.2169652]
[1739138505289,7.58,195.64,195.59,41.2169652]
[1739138505672,20.0,195.61,195.59,41.2169652]
[1739138505988,20.0,195.57,195.53,41.2169652]
[1739138506888,6.1734,195.52,195.46,41.2169652]
[1739138507088,1.5803,195.54,195.39,1.0]
[1739138507389,6.1734,195.59,195.43,33.41184853]
[1739138507600,20.0,195.56,195.4,41.3424552]
[1739138507777,30.0,195.54,195.53,0.063]
[1739138507965,71.2169652,195.54,195.53,0.063]
[1739138508291,84.62881373,195.54,195.53,0.063]
[1739138508463,84.62881373,195.54,195.44,41.2169652]
[1739138508464,20.0,195.49,195.44,41.2169652]
[1739138508661,20.0,195.43,195.4,41.2169652]
[1739138509084,20.0,195.42,195.38,41.2169652]
[1739138509369,20.0,195.42,195.34,41.2169652]
[1739138509370,20.0,195.38,195.34,41.2169652]
[1739138509890,20.0,195.36,195.34,41.2169652]
[1739138510071,6.3424,195.42,195.35,41.2169652]
[1739138510277,6.3424,195.42,195.39,41.2169652]
[1739138510472,6.3424,195.42,195.36,41.2169652]
[1739138510473,20.0,195.39,195.36,41.2169652]
[1739138510677,20.0,195.39,195.33,0.063]
[1739138510678,20.0,195.38,195.34,41.2169652]
[1739138510881,0.12549,195.37,195.33,0.063]
[1739138511108,6.3424,195.42,195.35,41.2169652]
[1739138511396,20.0,195.39,195.37,41.2169652]
[1739138511599,0.12549,195.38,195.35,41.2169652]
[1739138511902,20.0,195.35,195.33,0.063]
[1739138512094,6.3424,195.42,195.34,41.2169652]
[1739138512281,20.0,195.39,195.37,41.2169652]
[1739138512601,13.66282853,195.41,195.35,41.2169652]
[1739138512798,20.12549,195.37,195.33,41.2799652]
[1739138513687,20.12549,195.34,195.33,0.063]
[1739138513928,54.87979373,195.34,195.33,0.063]
[1739138514208,13.66282853,195.34,195.33,0.063]
[1739138514390,54.87979373,195.34,195.33,0.063]
[1739138514697,55.87979373,195.34,195.33,0.063]
[1739138514894,0.25098,195.3,195.22,41.2169652]
[1739138515203,20.0,195.25,195.21,41.2169652]
[1739138515383,7.4,195.24,195.21,41.2169652]
[1739138515890,7.4,195.24,195.2,41.2169652]
[1739138516088,7.4,195.24,195.18,41.2799652]
[1739138516287,20.0,195.21,195.19,41.2169652]
[1739138516483,7.4,195.24,195.2,41.2169652]
[1739138516686,42.7234652,195.33,195.2,41.2169652]